fUST/lending_fUST_20240313
["ID","MTS","AMOUNT","RATE_DAILY","PERIOD"]
[318600016,1710312648755,-500.0,0.00015068,2]
[318600017,1710312648764,-500.0,0.00015068,2]
[318600018,1710312648776,-500.0,0.00015068,2]
[318600019,1710312648785,-500.0,0.00015068,2]
[318600020,1710312648795,-500.0,0.00015068,2]
[318600021,1710312648804,-500.0,0.00015068,2]
[318600022,1710312648814,-501.06861781,0.00015068,2]
[318600023,1710312648823,-500.0,0.00015068,2]
[318600024,1710312648832,-584.22710179,0.00015068,2]
[318600025,1710312648841,-500.0,0.00015068,2]
[318600026,1710312648851,-500.0,0.00015068,2]
[318600027,1710312648861,-500.0,0.00015068,2]
[318600028,1710312648870,-645.99976565,0.00015068,2]
[318600029,1710312648879,-500.0,0.00015068,2]
[318600030,1710312648888,-500.0,0.00015068,2]
[318600031,1710312648899,-500.0,0.00015068,2]
[318600032,1710312648908,-303.18939654,0.00015068,2]
[318600033,1710312648917,-500.0,0.00015068,2]
[318600034,1710312648926,-500.0,0.00015068,2]
[318600035,1710312648935,-501.03893,0.00015068,2]
[318600036,1710312648944,-500.0,0.00015068,2]
[318600037,1710312648953,-500.0,0.00015068,2]
[318600038,1710312648962,-500.0,0.00015068,2]
[318600039,1710312648973,-645.15374119,0.00015068,2]
[318600040,1710312648982,-500.0,0.00015068,2]
[318600041,1710312648992,-500.0,0.00015068,2]
[318600042,1710312649002,-500.0,0.00015068,2]
[318600043,1710312649011,-500.0,0.00015068,2]
[318600044,1710312649021,-500.0,0.00015068,2]
[318600045,1710312649031,-500.0,0.00015068,2]
[318600046,1710312649040,-500.0,0.00015068,2]
[318600047,1710312649049,-500.0,0.00015068,2]
[318600048,1710312649058,-500.0,0.00015068,2]
[318600049,1710312649068,-500.0,0.00015068,2]
[318600050,1710312649078,-500.0,0.00015068,2]
[318600051,1710312649087,-500.0,0.00015068,2]
[318600052,1710312649096,-504.0926397,0.00015068,2]
[318600053,1710312649105,-500.0,0.00015068,2]
[318600054,1710312649114,-500.0,0.00015068,2]
[318600055,1710312649123,-500.0,0.00015068,2]
[318600056,1710312649132,-500.0,0.00015068,2]
[318600057,1710312649141,-500.0,0.00015068,2]
[318600058,1710312649150,-500.0,0.00015068,2]
[318600059,1710312649160,-500.0,0.00015068,2]
[318600060,1710312649170,-500.0,0.00015068,2]
[318600061,1710312649181,-500.0,0.00015068,2]
[318600062,1710312649191,-536.06399119,0.00015068,2]
[318600063,1710312649200,-500.0,0.00015068,2]
[318600064,1710312649209,-500.0,0.00015068,2]
[318600065,1710312649218,-500.0,0.00015068,2]
[318600066,1710312649227,-500.0,0.00015068,2]
[318600067,1710312649236,-500.0,0.00015068,2]
[318600068,1710312649247,-500.0,0.00015068,2]
[318600069,1710312649256,-500.0,0.00015068,2]
[318600070,1710312649265,-602.84210323,0.00015068,2]
[318600071,1710312649274,-500.0,0.00015068,2]
[318600072,1710312649284,-502.88494693,0.00015068,2]
[318600073,1710312649293,-500.0,0.00015068,2]
[318600074,1710312649302,-500.0,0.00015068,2]
[318600075,1710312649311,-502.08372415,0.00015068,2]
[318600076,1710312649322,-500.0,0.00015068,2]
[318600077,1710312649330,-500.0,0.00015068,2]
[318600078,1710312649339,-500.0,0.00015068,2]
[318600079,1710312649348,-500.0,0.00015068,2]
[318600080,1710312649357,-500.0,0.00015068,2]
[318600081,1710312649366,-484.62,0.00015068,2]
[318600082,1710312649375,-500.0,0.00015068,2]
[318600083,1710312649384,-500.0,0.00015068,2]
[318600084,1710312649393,-170.59828306,0.00015068,2]
[318600085,1710312649402,-506.59537522,0.00015068,2]
[318600086,1710312649413,-500.0,0.00015068,2]
[318600087,1710312649422,-500.0,0.00015068,2]
[318600088,1710312649430,-500.0,0.00015068,2]
[318600089,1710312649440,-500.0,0.00015068,2]
[318600090,1710312649449,-500.0,0.00015068,2]
[318600091,1710312649458,-514.198311,0.00015068,2]
[318600092,1710312649467,-500.0,0.00015068,2]
[318600093,1710312649476,-500.0,0.00015068,2]
[318600094,1710312649485,-500.0,0.00015068,2]
[318600095,1710312649494,-500.0,0.00015068,2]
[318600096,1710312649503,-500.0,0.00015068,2]
[318600097,1710312649513,-500.0,0.00015068,2]
[318600098,1710312649522,-561.46642677,0.00015068,2]
[318600099,1710312649531,-500.0,0.00015068,2]
[318600100,1710312649539,-500.0,0.00015068,2]
[318600101,1710312649548,-500.0,0.00015068,2]
[318600102,1710312649558,-500.0,0.00015068,2]
[318600103,1710312649568,-500.0,0.00015068,2]
[318600104,1710312649576,-500.0,0.00015068,2]
[318600105,1710312649585,-500.0,0.00015068,2]
[318600106,1710312649594,-500.0,0.00015068,2]
[318600107,1710312649604,-530.19820949,0.00015068,2]
[318600108,1710312649613,-500.0,0.00015068,2]
[318600109,1710312649622,-500.0,0.00015068,2]
[318600110,1710312649631,-501.76077933,0.00015068,2]
[318600111,1710312649640,-506.12423601,0.00015068,2]
[318600112,1710312649649,-426.03398648,0.00015083,2]
[318600113,1710312649658,-200.0,0.000151,2]
[318600114,1710312649667,-426.03398648,0.00015241,2]
[318600115,1710312649676,-246.4184521,0.00015352,2]
[318600116,1710312649685,-5919.05162311,0.000154,2]
[318600117,1710312649694,-426.03398648,0.000154,2]
[318600118,1710312649703,-187.37817515,0.000154,2]
[318600119,1710312649712,-671.39765449,0.00015403,2]
[318600120,1710312649721,-152.0,0.00015424,2]
[318600121,1710312649731,-2000.0,0.00015487,2]
[318600122,1710312649740,-208.43582616,0.00015498,2]
[318600123,1710312649750,-1161.64510467,0.00015498,2]
[318600124,1710312649763,-155.57335555,0.00015498,2]
[318600125,1710312649772,-175.37302991,0.00015498,2]
[318600126,1710312649781,-33386.44926836,0.00015499,2]
[318600127,1710312649827,-2383.22695102,0.00015499,2]
[318600242,1710313833087,-315.86771441,0.00013453,2]
[318600243,1710313833098,-315.86771441,0.00013454,2]
[318600245,1710313833109,-292.31580624,0.00013591,2]
[318600247,1710313833121,-3150.36714289,0.00013591,2]
[318600248,1710313833131,-443.401198,0.00013873,2]
[318600250,1710313833141,-22866.2489937,0.00013894,2]
[318600252,1710313833152,-2000.0,0.00014531,2]
[318600253,1710313833161,-439.0055757,0.00014723,2]
[318600255,1710313833172,-400.0920241,0.00015,2]
[318600257,1710313833182,-200.0,0.00015,2]
[318600259,1710313833194,-200.3240955,0.00015,2]
[318600260,1710313833204,-929.00320615,0.00015,2]
[318600262,1710313833213,-402.0697324,0.000151,2]
[318600264,1710313833223,-2000.0,0.00015113,2]
[318600266,1710313833233,-37327.00679863,0.000154,2]
[318600267,1710313833243,-537.11812361,0.000154,2]
[318600269,1710313833252,-187.37817515,0.000154,2]
[318600271,1710313833261,-351.63788458,0.000154,2]
[318600273,1710313833271,-268.32645838,0.00015429,2]
[318600274,1710313833280,-587.07757195,0.00015498,2]
[318600275,1710313833290,-156.1009526,0.00015498,2]
[318600276,1710313833299,-155.40018076,0.00015498,2]
[318600277,1710313833309,-291.3475603,0.00015498,2]
[318600278,1710313833320,-289.53453201,0.00015498,2]
[318600279,1710313833330,-524.39336891,0.00015498,2]
[318600280,1710313833340,-2599.10074081,0.00015498,2]
[318600281,1710313833350,-394441.76436238,0.00015499,2]
[318600307,1710313838816,-74100.57941824,0.00015499,2]
[318600309,1710313838826,-155.0341075,0.00015499,2]
[318600311,1710313838836,-155.0341075,0.00015499,2]
[318600313,1710313838846,-500.0,0.00015499,2]
[318600315,1710313838855,-500.0,0.00015499,2]
[318600317,1710313838865,-500.0,0.00015499,2]
[318600319,1710313838875,-500.0,0.00015499,2]
[318600321,1710313838885,-500.0,0.00015499,2]
[318600323,1710313838895,-500.0,0.00015499,2]
[318600325,1710313838906,-500.0,0.00015499,2]
[318600327,1710313838918,-500.0,0.00015499,2]
[318600329,1710313838928,-500.0,0.00015499,2]
[318600331,1710313838937,-500.0,0.00015499,2]
[318600333,1710313838946,-484.62,0.00015499,2]
[318600335,1710313838956,-152.21890955,0.00015499,2]
[318600337,1710313838965,-500.0,0.00015499,2]
[318600339,1710313838974,-500.0,0.00015499,2]
[318600341,1710313838984,-247865.499801,0.000155,2]
[318600343,1710313838994,-116050.95255625,0.000155,2]
[318600389,1710313840766,-417.2827404,0.00015344,2]
[318600390,1710313840830,-809.96960681,0.00015344,2]
[318600391,1710313840842,-1055.98067919,0.00015344,2]
[318600392,1710313840851,-214.8922236,0.000155,2]
[318600443,1710313843815,-600.94857776,0.000155,2]
[318600446,1710313843836,-10394.2005661,0.000155,2]
[318600709,1710313847238,-69119.12203506,0.000155,2]
[318600710,1710313847251,-1755.72476602,0.000155,2]
[318601717,1710314522758,7318.22,0.0001065,2]
[318601801,1710315032193,-155.08064193,0.00014195,2]
[318601802,1710315032203,-2610.4610232,0.00014196,2]
[318601803,1710315032212,-367.917624,0.00014262,2]
[318601804,1710315032221,-3819.96920327,0.000145,2]
[318601806,1710315032232,-390.74710298,0.000145,2]
[318601807,1710315032244,-3527.32258069,0.000145,2]
[318601808,1710315032253,-2000.0,0.00014725,2]
[318601809,1710315032262,-200.0,0.000149,2]
[318601810,1710315032272,-620.00000278,0.00014947,2]
[318601811,1710315032281,-483.40631124,0.000154,2]
[318601812,1710315032291,-187.37817515,0.00015497,2]
[318601813,1710315032300,-793.23617866,0.00015498,2]
[318601814,1710315032309,-318.82509174,0.00015499,2]
[318601815,1710315032318,-500.0,0.00015499,2]
[318601816,1710315032327,-500.90625719,0.00015499,2]
[318601817,1710315032337,-500.0,0.00015499,2]
[318601818,1710315032346,-503.47473244,0.00015499,2]
[318601819,1710315032357,-346.33185079,0.00015499,2]
[318601865,1710315038044,-153.66814921,0.00015499,2]
[318601867,1710315038053,-500.5822233,0.00015499,2]
[318601870,1710315038062,-209.26776041,0.00015499,2]
[318601872,1710315038072,-522.69930467,0.00015499,2]
[318601873,1710315038081,-281.38959554,0.00015499,2]
[318601876,1710315038090,-314.23881577,0.00015499,2]
[318601877,1710315038099,-500.0,0.00015499,2]
[318601880,1710315038109,-501.24382076,0.00015499,2]
[318601882,1710315038118,-500.0,0.00015499,2]
[318601884,1710315038127,-500.0,0.00015499,2]
[318601886,1710315038136,-500.0,0.00015499,2]
[318601887,1710315038145,-500.0,0.00015499,2]
[318601889,1710315038155,-501.2439937,0.00015499,2]
[318601891,1710315038164,-243.19661929,0.00015499,2]
[318601893,1710315038173,-21104.45637007,0.000155,2]
[318601896,1710315038185,-244435.06814006,0.000155,2]
[318601898,1710315038194,-171429.15154747,0.000155,2]
[318601900,1710315038203,-158305.39382193,0.000155,2]
[318601902,1710315038212,-271828.63314679,0.000155,2]
[318601904,1710315038221,-217.73988758,0.000155,2]
[318601906,1710315038230,-1222.6519772,0.000155,2]
[318601908,1710315038239,-155.15515516,0.000155,2]
[318601910,1710315038248,-449.03735686,0.000155,2]
[318601912,1710315038257,-155.15360207,0.000155,2]
[318601914,1710315038266,-12053.2948027,0.000155,2]
[318601916,1710315038276,-1992.13002725,0.000155,2]
[318601918,1710315038285,-155.35544115,0.000155,2]
[318601920,1710315038294,-155.05271792,0.000155,2]
[318601922,1710315038303,-155.05271792,0.000155,2]
[318601924,1710315038312,-2000.0,0.000155,2]
[318601925,1710315038322,-173.509149,0.00015509,2]
[318601927,1710315038331,-249.402113,0.00015571,2]
[318601929,1710315038340,-281.990436,0.00015571,2]
[318601931,1710315038350,-193.265307,0.00015571,2]
[318601933,1710315038359,-1447.362866,0.00015585,2]
[318601935,1710315038368,-2345.142232,0.00015585,2]
[318601937,1710315038377,-234.829761,0.00015585,2]
[318601939,1710315038387,-469.028446,0.00015585,2]
[318601941,1710315038396,-383.032772,0.0001563,2]
[318601943,1710315038405,-153.213109,0.0001563,2]
[318601945,1710315038415,-896.923824,0.0001563,2]
[318601947,1710315038427,-639.074817,0.0001563,2]
[318601949,1710315038437,-249.402113,0.00015759,2]
[318601951,1710315038448,-281.990436,0.00015759,2]
[318601953,1710315038457,-193.265307,0.00015759,2]
[318601955,1710315038466,-207.835095,0.00015759,2]
[318601956,1710315038476,-156.661353,0.00015759,2]
[318601959,1710315038486,-173.509149,0.00015759,2]
[318601961,1710315038495,-1447.362866,0.00015773,2]
[318601962,1710315038504,-2345.142232,0.00015773,2]
[318601965,1710315038516,-234.829761,0.00015773,2]
[318601966,1710315038525,-469.028446,0.00015773,2]
[318601969,1710315038535,-483.40631123,0.00015779,2]
[318601971,1710315038544,-383.032772,0.00015818,2]
[318601973,1710315038553,-191.516387,0.00015818,2]
[318601975,1710315038562,-153.213109,0.00015818,2]
[318601977,1710315038571,-163.317974,0.00015818,2]
[318601979,1710315038580,-169.741947,0.00015818,2]
[318601981,1710315038589,-159.532694,0.00015818,2]
[318601983,1710315038598,-178.105199,0.00015818,2]
[318601985,1710315038608,-896.923824,0.00015818,2]
[318601987,1710315038617,-639.074817,0.00015818,2]
[318601989,1710315038626,-175.75,0.00016,2]
[318601990,1710315038635,-14609.3079582,0.00016,2]
[318601992,1710315038645,-2578.10425509,0.00016,2]
[318601994,1710315038655,-311.619027,0.00016137,2]
[318601996,1710315038666,-483.40631123,0.00016159,2]
[318601998,1710315038675,-153.0,0.00016174,2]
[318602000,1710315038685,-2000.0,0.00016275,2]
[318602003,1710315038694,-153.0,0.00016448,2]
[318602004,1710315038704,-620.27181937,0.000165,2]
[318602006,1710315038713,-483.40631123,0.00016538,2]
[318602009,1710315038723,-153.0,0.00016548,2]
[318602011,1710315038732,-201.085777,0.00016548,2]
[318602013,1710315038741,-153.0,0.00016722,2]
[318602015,1710315038750,-483.40631123,0.00016917,2]
[318602017,1710315038759,-152.0,0.00016996,2]
[318602019,1710315038768,-3245.47997168,0.00017,5]
[318602021,1710315038777,-2000.0,0.0001705,2]
[318602023,1710315038786,-152.0,0.0001727,2]
[318602025,1710315038796,-483.40631123,0.00017297,2]
[318602027,1710315038805,-240.34206658,0.000175,5]
[318602029,1710315038814,-152.0,0.00017544,2]
[318602030,1710315038823,-1946.69161691,0.000176,2]
[318602032,1710315038832,-483.40631123,0.00017676,2]
[318602034,1710315038841,-6105.0,0.00017777,2]
[318602036,1710315038850,-152.0,0.00017818,2]
[318602039,1710315038860,-2707.795506,0.00017825,2]
[318602040,1710315038869,-76589.83161428,0.00018,2]
[318602043,1710315038878,-1850.00716982,0.00018,7]
[318602045,1710315038887,-7359.38575588,0.00018,2]
[318602047,1710315038895,-4050.84658351,0.00018,2]
[318602208,1710315039947,-4609.24864237,0.00018,2]
[318602215,1710315040006,-764.27,0.00018,2]
[318602218,1710315040019,-8434.07332513,0.00018,2]
[318602220,1710315040032,-3120.9915791,0.00018,2]
[318602521,1710315043035,-8662.16393863,0.00018,2]
[318602523,1710315043046,-3430.81919596,0.00018,2]
[318602761,1710315046293,-9234.03145685,0.00018,2]
[318602762,1710315046305,-4505.43696843,0.00018,2]
[318602763,1710315046354,-254619.29295895,0.00018,2]
[318603042,1710315648542,-6180.72638448,0.00018889,120]
[318603043,1710315648570,-6387.39997978,0.00018889,120]
[318603044,1710315648600,-5206.01925723,0.00018889,120]
[318603045,1710315648627,-2000.0,0.00018889,120]
[318603046,1710315648669,-217.62621023,0.00018889,120]
[318603047,1710315648718,-14035.54895762,0.00018889,120]
[318603048,1710315648822,-157.703468,0.00027671,120]
[318603049,1710315648843,-2500.0,0.00028,120]
[318603050,1710315648865,-3523.02291648,0.00028,120]
[318603051,1710315648895,-6387.39997978,0.00028,120]
[318603052,1710315648922,-5206.01925723,0.00028,120]
[318603053,1710315648951,-2000.0,0.00028,120]
[318603054,1710315648978,-217.62621023,0.00028,120]
[318603055,1710315649006,-14035.54895762,0.00028,120]
[318603056,1710315658830,-33945.35842132,0.00025,60]
[318603078,1710316223241,1000.0,0.00025,120]
[318603129,1710316232094,-500.0,0.00015499,2]
[318603131,1710316232103,-500.90739122,0.00015499,2]
[318603133,1710316232113,-586.98977943,0.00015499,2]
[318603135,1710316232122,-501.14336598,0.00015499,2]
[318603137,1710316232132,-500.0,0.00015499,2]
[318603139,1710316232141,-638.73164883,0.00015499,2]
[318603141,1710316232150,-500.0,0.00015499,2]
[318603143,1710316232160,-500.0,0.00015499,2]
[318603145,1710316232169,-500.0,0.00015499,2]
[318603147,1710316232179,-500.0,0.00015499,2]
[318603149,1710316232188,-500.0,0.00015499,2]
[318603151,1710316232197,-500.0,0.00015499,2]
[318603153,1710316232206,-500.0,0.00015499,2]
[318603155,1710316232215,-500.0,0.00015499,2]
[318603157,1710316232224,-500.0,0.00015499,2]
[318603159,1710316232233,-500.0,0.00015499,2]
[318603161,1710316232242,-500.0,0.00015499,2]
[318603163,1710316232251,-422.62210421,0.00015499,2]
[318603165,1710316232260,-1432.28014172,0.00016,2]
[318603167,1710316232270,-153.0,0.00016149,2]
[318603169,1710316232279,-183.958812,0.00016182,2]
[318603171,1710316232288,-153.0,0.00016423,2]
[318603173,1710316232297,-153.0,0.00016697,2]
[318603175,1710316232306,-153.0,0.00016971,2]
[318603177,1710316232315,-200.0,0.00017,2]
[318603179,1710316232324,-2000.0,0.00017,2]
[318603181,1710316232333,-153.0,0.0001726,2]
[318603183,1710316232342,-153.0,0.00017278,2]
[318603185,1710316232351,-401.6958004,0.00017378,2]
[318603187,1710316232360,-403.404322,0.00017678,2]
[318603189,1710316232369,-12912.07811492,0.00017777,2]
[318603191,1710316232378,-2707.795506,0.000178,2]
[318603193,1710316232388,-11686.68778428,0.000179,2]
[318603195,1710316232397,-3452.47640201,0.000179,2]
[318603197,1710316232406,-500.0,0.00017999,2]
[318603199,1710316232415,-500.0,0.00017999,2]
[318603201,1710316232424,-500.0,0.00017999,2]
[318603203,1710316232433,-500.0,0.00017999,2]
[318603205,1710316232442,-500.0,0.00017999,2]
[318603207,1710316232451,-475.16,0.00017999,2]
[318603209,1710316232461,-500.0,0.00017999,2]
[318603211,1710316232470,-500.0,0.00017999,2]
[318603213,1710316232480,-500.0,0.00017999,2]
[318603215,1710316232489,-500.0,0.00017999,2]
[318603217,1710316232498,-500.0,0.00017999,2]
[318603219,1710316232507,-500.0,0.00017999,2]
[318603221,1710316232518,-525.38,0.00017999,2]
[318603223,1710316232526,-30252.6663108,0.00018,2]
[318603225,1710316232538,-812.65697644,0.00018,2]
[318603780,1710316238170,-516.89318281,0.000165,2]
[318603782,1710316238180,-111072.5722682,0.00018,2]
[318603788,1710316238229,-14245.48881378,0.00018,2]
[318604275,1710316243200,-1379.33567265,0.00018,2]
[318604278,1710316243227,-83678.29059528,0.00018,2]
[318609059,1710317432293,-60.98687282,0.00015059,2]
[318609068,1710317432370,-126.39130233,0.00015059,2]
[318609070,1710317432381,-644.67484635,0.0001506,2]
[318609072,1710317432391,-155.06202481,0.00015061,2]
[318609075,1710317432451,-191.706109,0.00015099,2]
[318609077,1710317432462,-150.195803,0.00015099,2]
[318609079,1710317432472,-150.195803,0.00015476,2]
[318609081,1710317432483,-150.195803,0.00015854,2]
[318609083,1710317432494,-1432.28014172,0.00016,2]
[318609085,1710317432505,-183.958812,0.00016162,2]
[318609087,1710317432515,-516.89318281,0.00016999,2]
[318609089,1710317432525,-2006.38662776,0.00017,2]
[318609091,1710317432536,-153.0,0.00017178,2]
[318609093,1710317432547,-201.085777,0.00017278,2]
[318609095,1710317432558,-201.085777,0.000173,2]
[318609097,1710317432569,-1946.76257135,0.000176,2]
[318609098,1710317432580,-153.0,0.000176,2]
[318609100,1710317432592,-518.25930493,0.00017899,2]
[318609101,1710317432602,-500.0,0.00017999,2]
[318609103,1710317432615,-444.91935538,0.00017999,2]
[318609105,1710317432626,-500.0,0.00017999,2]
[318609107,1710317432636,-500.0,0.00017999,2]
[318609108,1710317432647,-500.0,0.00017999,2]
[318609109,1710317432658,-500.0,0.00017999,2]
[318609111,1710317432670,-500.0,0.00017999,2]
[318609113,1710317432681,-500.0,0.00017999,2]
[318609114,1710317432691,-500.0,0.00017999,2]
[318609115,1710317432701,-500.0,0.00017999,2]
[318609116,1710317432712,-500.73031746,0.00017999,2]
[318609117,1710317432722,-500.0,0.00017999,2]
[318609118,1710317432733,-500.0,0.00017999,2]
[318609119,1710317432744,-500.0,0.00017999,2]
[318609120,1710317432755,-500.0,0.00017999,2]
[318609121,1710317432767,-500.0,0.00017999,2]
[318609122,1710317432778,-500.0,0.00017999,2]
[318609123,1710317432789,-500.0,0.00017999,2]
[318609124,1710317432800,-500.87513868,0.00017999,2]
[318609125,1710317432926,-500.0,0.00017999,2]
[318609126,1710317432937,-401.6431326,0.00017999,2]
[318609127,1710317432947,-500.0,0.00017999,2]
[318609128,1710317432957,-500.0,0.00017999,2]
[318609129,1710317432966,-500.0,0.00017999,2]
[318609130,1710317432976,-254.94939582,0.00017999,2]
[318609131,1710317432985,-500.0,0.00017999,2]
[318609132,1710317432995,-500.0,0.00017999,2]
[318609133,1710317433004,-522.55868552,0.00017999,2]
[318609134,1710317433014,-413.55161968,0.00017999,2]
[318609135,1710317433023,-500.0,0.00017999,2]
[318609136,1710317433035,-402.78423594,0.00017999,2]
[318609137,1710317433044,-154.97090012,0.00017999,2]
[318609138,1710317433056,-202.93900199,0.00017999,2]
[318609139,1710317433065,-500.0,0.00017999,2]
[318609140,1710317433075,-500.0,0.00017999,2]
[318609141,1710317433085,-500.0,0.00017999,2]
[318609142,1710317433094,-500.0,0.00017999,2]
[318609143,1710317433104,-500.0,0.00017999,2]
[318609144,1710317433114,-500.0,0.00017999,2]
[318609145,1710317433124,-500.0,0.00017999,2]
[318609146,1710317433138,-500.0,0.00017999,2]
[318609147,1710317433147,-500.0,0.00017999,2]
[318609148,1710317433161,-257.84622724,0.00017999,2]
[318609149,1710317433175,-500.0,0.00017999,2]
[318609150,1710317433185,-500.0,0.00017999,2]
[318609151,1710317433195,-500.0,0.00017999,2]
[318609152,1710317433206,-500.0,0.00017999,2]
[318609153,1710317433216,-500.0,0.00017999,2]
[318609154,1710317433226,-500.0,0.00017999,2]
[318609155,1710317433236,-502.2382676,0.00017999,2]
[318609156,1710317433246,-13039.52692269,0.00018,2]
[318609229,1710317439317,-26177.91374754,0.00018,2]
[318609231,1710317439327,-500.1533029,0.00018,2]
[318609233,1710317439336,-175.5,0.00018,2]
[318609235,1710317439346,-155.05116689,0.00018,2]
[318609237,1710317439355,-155.05116689,0.00018,2]
[318609239,1710317439363,-59035.68078179,0.00018,2]
[318609304,1710317440426,-8383.57962892,0.00018,2]
[318609305,1710317440435,-7359.38575588,0.00018,2]
[318609306,1710317440445,-1015.98844267,0.00018,2]
[318609307,1710317440454,-200.63345297,0.00018,2]
[318609308,1710317440463,-2125.11732706,0.00018,5]
[318609309,1710317440473,-2125.11732706,0.00018,5]
[318609310,1710317440482,-2125.11732706,0.00018,5]
[318609311,1710317440491,-2125.11732706,0.00018,5]
[318609312,1710317440500,-2125.11732706,0.00018,5]
[318609313,1710317440509,-2125.11732706,0.00018,5]
[318609314,1710317440519,-2125.11732706,0.00018,5]
[318609315,1710317440528,-2125.11732706,0.00018,5]
[318609316,1710317440537,-437.44895011,0.00018,5]
[318609317,1710317440548,-1687.66837695,0.00018,5]
[318609318,1710317440558,-2125.11632706,0.00018,5]
[318609319,1710317440567,-1123.74230338,0.00018,2]
[318609320,1710317440576,-200.0,0.000188,2]
[318609321,1710317440585,-3084.35131063,0.000188,2]
[318609322,1710317440594,-4712.71250002,0.000188,2]
[318609323,1710317440604,-727.69844647,0.00018887,2]
[318609324,1710317440613,-500.0,0.00018888,2]
[318609325,1710317440622,-390.74710298,0.00018899,2]
[318609326,1710317440631,-1392.00419551,0.00018899,2]
[318609327,1710317440640,-604.32742616,0.00018899,2]
[318609328,1710317440649,-163.71395367,0.00018899,2]
[318609329,1710317440659,-151.0,0.000189,2]
[318609330,1710317440669,-151.0,0.000189,2]
[318609331,1710317440678,-152.156729,0.000189,2]
[318609332,1710317440688,-151.0,0.000189,2]
[318609333,1710317440697,-151.0,0.000189,2]
[318609334,1710317440706,-151.0,0.000189,2]
[318609335,1710317440715,-151.0,0.000189,2]
[318609336,1710317440725,-151.0,0.000189,2]
[318609337,1710317440734,-151.0,0.000189,2]
[318609338,1710317440743,-151.0,0.000189,2]
[318609339,1710317440753,-153.763183,0.000189,2]
[318609340,1710317440762,-16742.01612527,0.000189,2]
[318609341,1710317440772,-151.0,0.000189,2]
[318609342,1710317440781,-151.0,0.000189,2]
[318609343,1710317440790,-151.0,0.000189,2]
[318609344,1710317440799,-151.0,0.000189,2]
[318609345,1710317440808,-151.0,0.000189,2]
[318609346,1710317440817,-151.0,0.000189,2]
[318609347,1710317440826,-151.0,0.000189,2]
[318609348,1710317440836,-151.0,0.000189,2]
[318609349,1710317440845,-151.0,0.000189,2]
[318609350,1710317440855,-151.0,0.000189,2]
[318609351,1710317440864,-151.0,0.000189,2]
[318609352,1710317440873,-151.0,0.000189,2]
[318609353,1710317440882,-300.761131,0.000189,2]
[318609354,1710317440892,-151.0,0.000189,2]
[318609355,1710317440902,-151.0,0.000189,2]
[318609356,1710317440911,-151.0,0.000189,2]
[318609357,1710317440921,-151.0,0.000189,2]
[318609358,1710317440930,-236.426276,0.000189,2]
[318609359,1710317440939,-398.108547,0.000189,2]
[318609360,1710317440949,-246.841123,0.000189,2]
[318609361,1710317440958,-398.108547,0.000189,2]
[318609362,1710317440968,-398.108547,0.000189,2]
[318609363,1710317440977,-246.841123,0.000189,2]
[318609364,1710317440986,-398.108547,0.000189,2]
[318609365,1710317440996,-246.841123,0.000189,2]
[318609366,1710317441006,-398.108547,0.000189,2]
[318609367,1710317441015,-246.841123,0.000189,2]
[318609368,1710317441024,-398.108547,0.000189,2]
[318609369,1710317441033,-398.108547,0.000189,2]
[318609370,1710317441043,-246.841123,0.000189,2]
[318609371,1710317441052,-398.108547,0.000189,2]
[318609372,1710317441062,-246.841123,0.000189,2]